fUSD/lending_fUSD_20240617
["ID","MTS","AMOUNT","RATE_DAILY","PERIOD"]
[329729745,1718625057651,-150.0,0.00026486,2]
[329729746,1718625057669,-150.0,0.00026496,2]
[329729749,1718625057707,-1000.0,0.000265,11]
[329729751,1718625057725,-151.0,0.000265,7]
[329729754,1718625057748,-156.02769,0.000265,7]
[329729757,1718625057774,-151.0,0.000265,7]
[329729760,1718625057796,-151.0,0.000265,7]
[329729762,1718625057810,-382.631433,0.000265,7]
[329729764,1718625057832,-382.631433,0.000265,7]
[329729766,1718625057847,-150.0,0.00026503,2]
[329729768,1718625057867,-150.0,0.00026508,2]
[329729770,1718625057882,-150.0,0.00026519,2]
[329729772,1718625057904,-429.64074983,0.00026521,2]
[329729774,1718625057919,-197.92115591,0.00026531,2]
[329729777,1718625057935,-150.0,0.00026532,2]
[329729779,1718625057951,-1500.0,0.00026536,2]
[329729782,1718625057973,-1500.0,0.00026543,2]
[329729784,1718625057990,-152.11508471,0.00026556,2]
[329729786,1718625058013,-2300.43774568,0.00026564,2]
[329729789,1718625058034,-150.0,0.00026566,2]
[329729791,1718625058058,-150.0,0.0002657,2]
[329729794,1718625058096,-416.65,0.0002657,30]
[329729796,1718625058116,-151.0,0.00026575,7]
[329729798,1718625058133,-151.0,0.00026575,7]
[329729800,1718625058150,-392.083845,0.00026575,2]
[329729802,1718625058166,-150.0,0.00026586,2]
[329729804,1718625058183,-1500.0,0.00026589,2]
[329729807,1718625058202,-151.0,0.00026592,7]
[329729809,1718625058220,-151.0,0.00026592,7]
[329729812,1718625058235,-154.538241,0.00026592,7]
[329729814,1718625058250,-151.0,0.00026592,7]
[329729816,1718625058268,-7736.0,0.000266,2]
[329729818,1718625058289,-648.49,0.00026602,2]
[329729819,1718625058304,-429.64074983,0.00026605,2]
[329729821,1718625058321,-150.0,0.00026605,2]
[329729823,1718625058338,-150.0,0.00026617,2]
[329729825,1718625058357,-150.0,0.0002663,2]
[329729828,1718625058372,-3271.068988,0.00026631,2]
[329729830,1718625058399,-150.867959,0.00026631,2]
[329729833,1718625058420,-213.21288,0.00026631,2]
[329729835,1718625058435,-357.883112,0.00026631,2]
[329729837,1718625058454,-7059.190538,0.00026631,2]
[329729839,1718625058471,-6503.766023,0.00026631,2]
[329729841,1718625058485,-3232.697035,0.00026631,2]
[329729844,1718625058503,-302.315451,0.00026631,2]
[329729846,1718625058518,-195.932698,0.00026631,2]
[329729848,1718625058533,-10588.785808,0.00026631,2]
[329729850,1718625058563,-449.866465,0.00026631,2]
[329729852,1718625058580,-3271.068988,0.00026631,2]
[329729855,1718625058603,-150.0,0.00026635,2]
[329729856,1718625058626,-197.92115591,0.00026643,2]
[329729858,1718625058640,-150.0,0.00026649,2]
[329729861,1718625058655,-300.0,0.00026651,2]
[329729863,1718625058680,-150.0,0.00026651,2]
[329729865,1718625058692,-162.18737293,0.00026656,2]
[329729867,1718625058705,-1500.0,0.00026662,2]
[329729869,1718625058725,-150.0,0.00026708,2]
[329729871,1718625058736,-150.0,0.00026715,2]
[329729873,1718625058750,-159.00439288,0.00026718,2]
[329729875,1718625058762,-688.44804968,0.00026726,2]
[329729877,1718625058776,-150.0,0.00026731,2]
[329729879,1718625058789,-159.93934289,0.00026745,2]
[329729881,1718625058831,-150.0,0.00026747,2]
[329729899,1718625059196,-150.0,0.00026752,2]
[329729901,1718625059229,-150.0,0.00026754,2]
[329729904,1718625059267,-1000.0,0.00026754,10]
[329729906,1718625059287,-150.0,0.00026766,2]
[329729909,1718625059305,-150.0,0.00026768,2]
[329729911,1718625059324,-210.850881,0.0002677,7]
[329729913,1718625059335,-151.0,0.0002677,7]
[329729915,1718625059348,-151.0,0.0002677,7]
[329729917,1718625059360,-151.0,0.0002677,7]
[329729920,1718625059386,-325.607582,0.0002677,7]
[329729922,1718625059400,-325.607582,0.0002677,7]
[329729925,1718625059428,-151.0,0.0002677,7]
[329729927,1718625059454,-151.0,0.0002677,7]
[329729930,1718625059472,-283.22486,0.0002677,7]
[329729931,1718625059493,-151.0,0.0002677,7]
[329729935,1718625059524,-157.674058,0.0002677,7]
[329729937,1718625059547,-157.674058,0.0002677,7]
[329729939,1718625059558,-330.962042,0.0002677,7]
[329729941,1718625059571,-330.962042,0.0002677,7]
[329729943,1718625059583,-1500.0,0.0002677,2]
[329729945,1718625059594,-150.0,0.00026771,2]
[329729948,1718625059607,-150.0,0.00026775,2]
[329729950,1718625059624,-150.0,0.00026782,2]
[329729952,1718625059642,-150.0,0.00026783,2]
[329729954,1718625059660,-154.16912763,0.00026784,2]
[329729956,1718625059672,-154.31165084,0.00026786,2]
[329729958,1718625059683,-150.0,0.0002679,2]
[329729960,1718625059697,-1233.10850258,0.00026798,2]
[329729962,1718625059710,-3172.4,0.000268,2]
[329729964,1718625059728,-300.0,0.00026806,2]
[329729965,1718625059749,-150.0,0.00026811,2]
[329729967,1718625059766,-150.0,0.00026811,2]
[329729970,1718625059793,-150.0,0.00026813,2]
[329729972,1718625059810,-150.0,0.00026814,2]
[329729974,1718625059830,-150.0,0.00026815,2]
[329729975,1718625059842,-150.0,0.00026818,2]
[329729977,1718625059856,-150.0,0.00026819,2]
[329729979,1718625059870,-150.0,0.0002682,2]
[329729982,1718625059898,-150.0,0.00026825,2]
[329729984,1718625059912,-448.15573359,0.00026827,2]
[329729986,1718625059925,-197.92115591,0.00026832,2]
[329729989,1718625059954,-150.0,0.00026849,2]
[329729993,1718625059983,-150.0,0.00026851,2]
[329729997,1718625060038,-150.0,0.00026852,2]
[329729999,1718625060058,-150.0,0.00026859,2]
[329730001,1718625060086,-150.0,0.00026868,2]
[329730003,1718625060111,-150.0,0.0002687,2]
[329730005,1718625060126,-150.0,0.00026871,2]
[329730008,1718625060143,-150.0,0.00026874,2]
[329730010,1718625060157,-150.0,0.0002688,2]
[329730011,1718625060170,-300.0,0.00026883,2]
[329730013,1718625060184,-150.0,0.00026886,2]
[329730015,1718625060216,-175.41202405,0.00026886,2]
[329730017,1718625060245,-150.0,0.00026888,2]
[329730018,1718625060261,-257.52354434,0.00026891,2]
[329730021,1718625060276,-150.0,0.00026893,2]
[329730023,1718625060305,-150.0,0.00026894,2]
[329730025,1718625060334,-300.0,0.00026898,2]
[329730027,1718625060361,-294.61446051,0.000269,2]
[329730029,1718625060388,-153.20164556,0.000269,2]
[329730031,1718625060402,-153.20164541,0.000269,2]
[329730033,1718625060414,-153.20164541,0.000269,2]
[329730035,1718625060425,-153.20164541,0.000269,2]
[329730037,1718625060440,-153.20164541,0.000269,2]
[329730040,1718625060452,-153.20164541,0.000269,2]
[329730042,1718625060484,-153.20164541,0.000269,2]
[329730044,1718625060495,-153.20164541,0.000269,2]
[329730046,1718625060508,-153.20164541,0.000269,2]
[329730048,1718625060523,-153.20164541,0.000269,2]
[329730050,1718625060539,-153.20164541,0.000269,2]
[329730052,1718625060550,-153.20164541,0.000269,2]
[329730055,1718625060573,-153.20164541,0.000269,2]
[329730057,1718625060586,-153.20164541,0.000269,2]
[329730059,1718625060605,-153.20164541,0.000269,2]
[329730062,1718625060630,-153.20164541,0.000269,2]
[329730064,1718625060641,-153.20164541,0.000269,2]
[329730065,1718625060655,-153.20164541,0.000269,2]
[329730067,1718625060667,-153.20164541,0.000269,2]
[329730069,1718625060684,-153.20164541,0.000269,2]
[329730071,1718625060708,-153.20164541,0.000269,2]
[329730074,1718625060733,-153.20164541,0.000269,2]
[329730076,1718625060757,-153.20164541,0.000269,2]
[329730079,1718625060808,-153.20164541,0.000269,2]
[329730081,1718625060826,-153.20164541,0.000269,2]
[329730082,1718625060861,-1500.0,0.000269,2]
[329730084,1718625060889,-150.0,0.00026901,2]
[329730086,1718625060904,-150.0,0.00026901,2]
[329730088,1718625060915,-150.0,0.00026902,2]
[329730090,1718625060928,-150.0,0.00026909,2]
[329730092,1718625060948,-150.0,0.0002691,2]
[329730094,1718625060960,-275.51847522,0.00026912,2]
[329730096,1718625060981,-150.0,0.00026918,2]
[329730098,1718625060994,-470.49823528,0.00026918,2]
[329730100,1718625061014,-150.0,0.0002692,2]
[329730102,1718625061040,-150.0,0.00026924,2]
[329730103,1718625061052,-500.0,0.00026932,2]
[329730106,1718625061067,-200.0,0.00026932,2]
[329730107,1718625061092,-150.0,0.00026932,2]
[329730109,1718625061104,-150.0,0.00026932,2]
[329730111,1718625061128,-500.0,0.00026933,2]
[329730113,1718625061141,-500.0,0.00026933,2]
[329730115,1718625061152,-200.0,0.00026933,2]
[329730117,1718625061165,-150.0,0.00026933,2]
[329730119,1718625061178,-150.0,0.00026935,2]
[329730121,1718625061189,-150.0,0.00026936,2]
[329730122,1718625061200,-429.64074983,0.00026936,2]
[329730125,1718625061221,-150.0,0.00026937,2]
[329730127,1718625061250,-150.0,0.00026938,2]
[329730129,1718625061275,-150.0,0.00026939,2]
[329730131,1718625061287,-150.0,0.00026941,2]
[329730133,1718625061300,-300.0,0.00026941,2]
[329730135,1718625061318,-150.0,0.00026945,2]
[329730137,1718625061334,-150.0,0.00026946,2]
[329730138,1718625061374,-150.0,0.00026953,2]
[329730140,1718625061392,-1500.0,0.00026954,2]
[329730141,1718625061405,-150.0,0.00026958,2]
[329730143,1718625061428,-150.0,0.00026958,2]
[329730144,1718625061442,-3271.068988,0.0002696,2]
[329730146,1718625061458,-150.867959,0.0002696,2]
[329730148,1718625061486,-213.21288,0.0002696,2]
[329730150,1718625061501,-357.883112,0.0002696,2]
[329730152,1718625061513,-7059.190538,0.0002696,2]
[329730153,1718625061536,-6503.766023,0.0002696,2]
[329730155,1718625061547,-3232.697035,0.0002696,2]
[329730157,1718625061561,-302.315451,0.0002696,2]
[329730159,1718625061578,-195.932698,0.0002696,2]
[329730161,1718625061599,-10588.785808,0.0002696,2]
[329730163,1718625061634,-449.866465,0.0002696,2]
[329730166,1718625061651,-3271.068988,0.0002696,2]
[329730167,1718625061663,-151.0,0.0002696,7]
[329730170,1718625061677,-151.0,0.0002696,7]
[329730172,1718625061694,-151.0,0.0002696,7]
[329730174,1718625061734,-151.0,0.0002696,3]
[329730176,1718625061755,-217.266397,0.0002696,7]
[329730179,1718625061790,-217.266397,0.0002696,7]
[329730181,1718625061808,-151.0,0.0002696,7]
[329730183,1718625061842,-150.0,0.00026961,2]
[329730185,1718625061855,-150.0,0.00026961,2]
[329730187,1718625061874,-150.0,0.00026966,2]
[329730189,1718625061894,-150.0,0.00026966,2]
[329730192,1718625061953,-150.0,0.00026966,2]
[329730193,1718625061966,-150.0,0.00026971,2]
[329730195,1718625061978,-297.95029705,0.00026971,2]
[329730197,1718625062012,-150.0,0.00026975,2]
[329730199,1718625062033,-150.0,0.00026977,2]
[329730201,1718625062048,-150.0,0.00026983,2]
[329730203,1718625062063,-150.0,0.00026987,2]
[329730206,1718625062076,-150.0,0.00026993,2]
[329730208,1718625062098,-157.09743161,0.00026999,10]
[329730210,1718625062109,-11463.96313934,0.00026999,10]
[329730212,1718625062120,-151.0,0.00026999,7]
[329730214,1718625062132,-151.0,0.00026999,7]
[329730216,1718625062147,-178.696019,0.00026999,7]
[329730218,1718625062159,-178.696019,0.00026999,7]
[329730220,1718625062177,-151.0,0.00026999,7]
[329730221,1718625062196,-151.0,0.00026999,7]
[329730223,1718625062231,-177.83858196,0.00027,4]
[329730225,1718625062242,-151.0,0.00027,7]
[329730226,1718625062260,-151.0,0.00027,7]
[329730228,1718625062286,-151.998453,0.00027,7]
[329730230,1718625062298,-151.0,0.00027,7]
[329730232,1718625062313,-151.0,0.00027,7]
[329730234,1718625062324,-152.103664,0.00027,7]
[329730236,1718625062349,-151.0,0.00027,7]
[329730238,1718625062362,-151.0,0.00027,7]
[329730240,1718625062377,-151.0,0.00027,7]
[329730242,1718625062393,-266.404316,0.00027,7]
[329730243,1718625062428,-266.404316,0.00027,7]
[329730245,1718625062444,-151.0,0.00027,7]
[329730247,1718625062459,-151.0,0.00027,7]
[329730249,1718625062471,-151.0,0.00027,7]
[329730251,1718625062484,-222.198442,0.00027,7]
[329730253,1718625062501,-222.198442,0.00027,7]
[329730256,1718625062538,-182.425122,0.00027,7]
[329730258,1718625062566,-152.762038,0.00027,7]
[329730260,1718625062581,-1062.0,0.00027,2]
[329730262,1718625062607,-150.0,0.00027,2]
[329730265,1718625062645,-250000.0,0.00027,2]
[329730266,1718625062658,-151.0,0.00027,7]
[329730268,1718625062669,-186.10987,0.00027,7]
[329730270,1718625062716,-151.0,0.00027,7]
[329730271,1718625062735,-325.607582,0.00027,7]
[329730273,1718625062754,-325.607582,0.00027,7]
[329730276,1718625062782,-151.0,0.00027,7]
[329730277,1718625062794,-151.0,0.00027,7]
[329730279,1718625062806,-151.0,0.00027,7]
[329730281,1718625062833,-157.674058,0.00027,7]
[329730283,1718625062845,-157.674058,0.00027,7]
[329730285,1718625062856,-239.508976,0.00027,7]
[329730287,1718625062876,-330.962042,0.00027,7]
[329730289,1718625062894,-330.962042,0.00027,7]
[329730292,1718625062917,-151.0,0.00027,7]
[329730294,1718625062941,-151.0,0.00027,7]
[329730296,1718625062963,-382.631433,0.00027,7]
[329730298,1718625062991,-382.631433,0.00027,7]
[329730300,1718625063011,-151.0,0.00027,7]
[329730301,1718625063031,-151.0,0.00027,7]
[329730303,1718625063047,-178.696019,0.00027,7]
[329730305,1718625063069,-178.696019,0.00027,7]
[329730308,1718625063093,-151.0,0.00027,7]
[329730309,1718625063106,-151.0,0.00027,7]
[329730311,1718625063122,-150.0,0.00027012,2]
[329730313,1718625063132,-150.0,0.00027014,2]
[329730315,1718625063191,-150.0,0.00027015,2]
[329730317,1718625063208,-150.0,0.00027022,2]
[329730319,1718625063229,-10000.0,0.00027023,2]
[329730321,1718625063247,-150.0,0.00027026,2]
[329730323,1718625063271,-150.0,0.00027027,2]
[329730325,1718625063283,-150.0,0.00027031,2]
[329730327,1718625063303,-300.0,0.00027031,2]
[329730330,1718625063341,-150.0,0.00027033,2]
[329730332,1718625063358,-150.0,0.00027039,2]
[329730334,1718625063374,-150.0,0.00027043,2]
[329730335,1718625063397,-150.0,0.00027045,2]
[329730336,1718625063408,-150.0,0.00027048,2]
[329730337,1718625063438,-150.0,0.00027049,2]
[329730338,1718625063463,-151.0,0.00027054,7]
[329730339,1718625063478,-154.775338,0.00027054,7]
[329730340,1718625063492,-428.192811,0.00027054,7]
[329730342,1718625063508,-428.192811,0.00027054,7]
[329730344,1718625063533,-151.0,0.00027054,7]
[329730345,1718625063545,-150.0,0.00027055,2]
[329730346,1718625063556,-150.0,0.00027055,2]
[329730347,1718625063567,-150.0,0.00027056,2]
[329730348,1718625063578,-300.0,0.00027059,2]
[329730349,1718625063589,-160.96145124,0.00027064,2]
[329730350,1718625063629,-300.0,0.00027065,2]
[329730351,1718625063641,-300.0,0.00027066,2]
[329730352,1718625063674,-800.0,0.00027068,2]
[329730353,1718625063692,-800.0,0.00027068,2]
[329730354,1718625063707,-800.0,0.00027068,2]
[329730355,1718625063730,-800.0,0.00027068,2]
[329730356,1718625063743,-800.0,0.00027068,2]
[329730357,1718625063762,-150.0,0.00027074,2]
[329730358,1718625063778,-429.64074983,0.0002708,2]
[329730359,1718625063792,-150.0,0.00027087,2]
[329730360,1718625063820,-300.0,0.00027092,2]
[329730361,1718625063840,-150.0,0.00027094,2]
[329730362,1718625063852,-150.0,0.00027097,2]
[329730363,1718625063864,-291.0,0.000271,2]
[329730364,1718625063877,-160.0,0.000271,2]
[329730365,1718625063895,-306.57553267,0.000271,2]
[329730366,1718625063907,-150.0,0.000271,2]
[329730367,1718625063922,-150.0,0.000271,2]
[329730368,1718625063936,-261.829136,0.000271,2]
[329730369,1718625063948,-268.240418,0.000271,6]
[329730370,1718625063961,-150.0,0.000271,5]
[329730371,1718625063975,-150.0,0.000271,5]
[329730372,1718625064021,-150.0,0.00027103,2]
[329730373,1718625064037,-150.0,0.00027104,2]
[329730374,1718625064052,-197.92115591,0.00027109,2]
[329730375,1718625064066,-150.0,0.00027112,2]
[329730376,1718625064077,-150.0,0.00027115,2]
[329730377,1718625064101,-154.43667046,0.00027117,2]
[329730378,1718625064116,-151.0,0.00027123,7]
[329730379,1718625064129,-151.0,0.00027123,7]
[329730380,1718625064141,-151.0,0.00027123,7]
[329730381,1718625064155,-217.266397,0.00027123,7]
[329730382,1718625064177,-217.266397,0.00027123,7]
[329730383,1718625064195,-151.0,0.00027123,7]
[329730384,1718625064226,-500.0,0.00027123,8]
[329730385,1718625064245,-500.0,0.00027123,8]
[329730386,1718625064261,-500.0,0.00027123,8]
[329730387,1718625064276,-500.0,0.00027123,8]
[329730388,1718625064287,-500.0,0.00027123,8]
[329730389,1718625064304,-500.0,0.00027123,8]
[329730390,1718625064322,-500.0,0.00027123,8]
[329730392,1718625064344,-500.0,0.00027123,8]
[329730393,1718625064362,-500.0,0.00027123,8]
[329730394,1718625064374,-500.0,0.00027123,8]
[329730395,1718625064387,-500.0,0.00027123,8]
[329730396,1718625064399,-1218.99,0.00027123,8]
[329730397,1718625064423,-1218.99,0.00027123,8]
[329730398,1718625064443,-1218.99,0.00027123,8]
[329730399,1718625064456,-1218.99,0.00027123,8]
[329730400,1718625064467,-1218.99,0.00027123,8]
[329730401,1718625064491,-1218.99,0.00027123,8]
[329730402,1718625064502,-1218.99,0.00027123,8]
[329730403,1718625064516,-1218.99,0.00027123,8]
[329730404,1718625064531,-1218.99,0.00027123,8]
[329730405,1718625064543,-1218.99,0.00027123,8]
[329730406,1718625064557,-1218.99,0.00027123,8]
[329730407,1718625064569,-1218.99,0.00027123,8]
[329730408,1718625064588,-1218.99,0.00027123,8]
[329730409,1718625064600,-1218.99,0.00027123,8]
[329730410,1718625064613,-1218.99,0.00027123,8]
[329730411,1718625064628,-1218.99,0.00027123,8]
[329730412,1718625064652,-1218.99,0.00027123,8]
[329730413,1718625064664,-1218.99,0.00027123,8]
[329730414,1718625064675,-1218.99,0.00027123,8]
[329730415,1718625064701,-1218.99,0.00027123,8]
[329730416,1718625064723,-1218.99,0.00027123,8]
[329730417,1718625064736,-1218.99,0.00027123,8]
[329730418,1718625064747,-1218.99,0.00027123,8]
[329730419,1718625064759,-1219.18134144,0.00027123,8]
[329730420,1718625064773,-1500.0,0.00027125,2]
[329730421,1718625064786,-300.0,0.00027135,2]
[329730422,1718625064805,-150.0,0.0002714,2]
[329730423,1718625064822,-437.2931951,0.00027141,2]
[329730424,1718625064845,-2774.4885534,0.00027141,2]
[329730425,1718625064860,-1031.5683478,0.00027141,2]
[329730426,1718625064878,-150.0,0.00027142,2]
[329730427,1718625064893,-150.0,0.00027143,2]
[329730428,1718625064907,-150.0,0.00027145,2]
[329730429,1718625064941,-1000.0,0.00027148,2]
[329730430,1718625064960,-569.2474091,0.00027157,2]
[329730431,1718625064979,-2771.0834798,0.00027157,2]
[329730432,1718625064991,-198.7205979,0.00027157,2]
[329730433,1718625065026,-2076.5115564,0.00027157,2]
[329730434,1718625065057,-6330.16650482,0.0002716,2]
[329730435,1718625065069,-151.36540583,0.00027168,2]
[329730436,1718625065080,-159.93934289,0.00027168,2]
[329730437,1718625065092,-15000.0,0.0002717,2]
[329730438,1718625065106,-2552.75662175,0.0002718,5]
[329730439,1718625065119,-300.0,0.00027185,2]
[329730440,1718625065131,-429.64074983,0.00027187,2]
[329730441,1718625065146,-270.77486,0.00027191,7]
[329730442,1718625065160,-151.0,0.00027191,7]
[329730443,1718625065171,-293.77187,0.00027191,7]
[329730444,1718625065187,-500.0,0.00027191,2]
[329730445,1718625065213,-16000.0,0.00027191,2]
[329730446,1718625065229,-500.0,0.00027197,8]
[329730447,1718625065258,-500.0,0.00027199,8]
[329730448,1718625065277,-152.073045,0.00027199,2]
[329730449,1718625065291,-260.1685599,0.000272,2]
[329730450,1718625065309,-2014.80803572,0.000272,2]
[329730451,1718625065322,-6885.0,0.000272,4]
[329730452,1718625065515,-160.0,0.000272,2]
[329730453,1718625065535,-58000.0,0.000272,2]
[329730454,1718625065551,-500.0,0.000272,2]
[329730455,1718625065563,-5800.0,0.000272,2]
[329730456,1718625065577,-16000.0,0.000272,2]
[329730457,1718625065602,-3037.36921313,0.000272,2]
[329730458,1718625065621,-4918.54598741,0.000272,2]
[329730459,1718625065635,-151.0,0.000272,7]
[329730460,1718625065645,-151.0,0.000272,7]
[329730461,1718625065659,-266.404316,0.000272,7]
[329730462,1718625065673,-266.404316,0.000272,7]
[329730463,1718625065683,-171.74382356,0.000272,2]
[329730464,1718625065696,-151.0,0.000272,7]
[329730465,1718625065720,-151.0,0.000272,7]
[329730466,1718625065740,-186.567116,0.000272,7]
[329730467,1718625065754,-222.198442,0.000272,7]
[329730468,1718625065766,-222.198442,0.000272,7]
[329730469,1718625065782,-2502.94,0.000272,2]
[329730470,1718625065807,-169.24790697,0.000272,2]
[329730471,1718625065820,-428.192811,0.000272,7]
[329730472,1718625065842,-428.192811,0.000272,7]
[329730473,1718625065859,-151.0,0.000272,7]
[329730474,1718625065873,-151.0,0.000272,7]
[329730475,1718625065890,-325.607582,0.000272,7]
[329730476,1718625065917,-325.607582,0.000272,7]
[329730477,1718625065949,-151.0,0.000272,7]
[329730478,1718625065991,-6330.16650482,0.000272,2]
[329730479,1718625066014,-151.0,0.000272,7]
[329730480,1718625066028,-157.674058,0.000272,7]
[329730481,1718625066052,-157.674058,0.000272,7]
[329730482,1718625066063,-13278.19587911,0.000272,2]
[329730483,1718625066075,-330.962042,0.000272,7]
[329730484,1718625066100,-171.099378,0.000272,7]
[329730485,1718625066116,-330.962042,0.000272,7]
[329730486,1718625066152,-382.631433,0.000272,7]
[329730487,1718625066180,-382.631433,0.000272,7]
[329730488,1718625066200,-19890.98469839,0.000272,2]
[329730489,1718625066235,-173.88973447,0.000272,2]
[329730490,1718625066245,-151.0,0.000272,7]
[329730491,1718625066258,-1705.50327426,0.000272,2]
[329730492,1718625066278,-322.85509786,0.000272,2]
[329730493,1718625066293,-178.696019,0.000272,7]
[329730494,1718625066304,-1449.90188179,0.000272,2]
[329730495,1718625066320,-178.696019,0.000272,7]
[329730496,1718625066339,-151.0,0.000272,7]
[329730497,1718625066351,-153.20164541,0.000272,2]
[329730498,1718625066362,-154.31165084,0.00027202,2]
[329730499,1718625066374,-300.0,0.00027202,2]
[329730500,1718625066386,-151.0,0.00027205,7]
[329730501,1718625066402,-151.0,0.00027205,7]
[329730502,1718625066418,-2101.0,0.00027205,2]
[329730503,1718625066440,-10206.0,0.00027205,2]
[329730504,1718625066456,-151.0,0.00027206,5]
[329730505,1718625066470,-158.42682675,0.00027212,2]
[329730506,1718625066482,-300.0,0.00027212,2]
[329730507,1718625066519,-150.0,0.00027213,2]
[329730508,1718625066534,-150.0,0.0002722,2]
[329730509,1718625066553,-667.45,0.00027247,6]
[329730510,1718625066566,-500.0,0.00027247,8]
[329730511,1718625066577,-184.23983074,0.00027248,2]
[329730512,1718625066592,-1491.5398984,0.00027248,2]
[329730513,1718625066621,-155.0,0.00027248,2]
[329730514,1718625066652,-155.0,0.00027248,2]
[329730515,1718625066692,-155.0,0.00027248,2]
[329730516,1718625066723,-155.15183143,0.00027248,2]
[329730517,1718625066743,-205.87538729,0.00027248,2]
[329730518,1718625066774,-233.25177335,0.00027248,2]
[329730519,1718625066788,-155.0,0.00027248,2]
[329730520,1718625066813,-166.95903437,0.00027248,2]
[329730521,1718625066849,-178.4410572,0.00027248,2]
[329730522,1718625066865,-157611.85880649,0.00027248,2]
[329730523,1718625066905,-151.0,0.00027248,7]
[329730524,1718625066918,-151.0,0.00027248,7]
[329730525,1718625066930,-151.0,0.00027248,7]
[329730526,1718625066952,-151.0,0.00027248,7]
[329730527,1718625066969,-217.266397,0.00027248,7]
[329730528,1718625066980,-217.266397,0.00027248,7]
[329730529,1718625066992,-178.696019,0.00027248,7]
[329730530,1718625067007,-178.696019,0.00027248,7]
[329730531,1718625067020,-151.0,0.00027248,7]
[329730532,1718625067041,-500.0,0.00027249,8]
[329730533,1718625067056,-500.0,0.00027249,8]
[329730534,1718625067096,-500.0,0.00027249,8]
[329730535,1718625067108,-500.0,0.00027249,8]
[329730536,1718625067122,-1000000.0,0.0002725,4]
[329730537,1718625067136,-151.0,0.0002725,7]
[329730538,1718625067155,-151.0,0.0002725,7]
[329730539,1718625067167,-151.0,0.0002725,7]
[329730540,1718625067178,-151.0,0.0002725,7]
[329730541,1718625067192,-266.404316,0.0002725,7]
[329730542,1718625067208,-266.404316,0.0002725,7]
[329730543,1718625067231,-151.0,0.0002725,7]
[329730544,1718625067272,-155.101469,0.0002725,7]
[329730545,1718625067286,-151.0,0.0002725,7]
[329730546,1718625067302,-222.198442,0.0002725,7]
[329730547,1718625067317,-222.198442,0.0002725,7]
[329730548,1718625067331,-217.266397,0.0002725,7]
[329730549,1718625067341,-217.266397,0.0002725,7]
[329730550,1718625067352,-428.192811,0.0002725,7]
[329730551,1718625067363,-428.192811,0.0002725,7]
[329730552,1718625067374,-151.0,0.0002725,7]
[329730553,1718625067392,-151.0,0.0002725,7]
[329730554,1718625067403,-325.607582,0.0002725,7]
[329730555,1718625067419,-325.607582,0.0002725,7]
[329730556,1718625067435,-151.0,0.0002725,7]
[329730557,1718625067465,-151.0,0.0002725,7]
[329730558,1718625067480,-157.674058,0.0002725,7]
[329730559,1718625067492,-157.674058,0.0002725,7]
[329730560,1718625067506,-330.962042,0.0002725,7]
[329730561,1718625067526,-330.962042,0.0002725,7]